bitfinex-derivatives/quotes_SOLF0:USTF0_20241226
["timestamp","ask_amount","ask_price","bid_price","bid_amount"]
[1735209829494,2.6512,188.79,188.76,7.77963972]
[1735209831200,32.22351924,188.84,188.78,7.77963972]
[1735209831402,32.22351924,188.84,188.81,7.77963972]
[1735209831803,2.6507,188.83,188.79,7.77963972]
[1735209832300,34.87401924,188.84,188.8,2.651]
[1735209832697,5.8305,188.84,188.8,2.651]
[1735209833698,3.18,188.84,188.79,7.77963972]
[1735209834296,2.6509,188.82,188.79,7.77963972]
[1735209834798,2.6509,188.82,188.79,10.43083972]
[1735209835494,2.6507,188.83,188.79,10.43083972]
[1735209837895,5.8307,188.83,188.79,10.43083972]
[1735209839298,36.82315896,188.86,188.79,10.43083972]
[1735209839299,29.04351924,188.86,188.79,7.77963972]
[1735209839498,29.04351924,188.86,188.85,7.77963972]
[1735209839698,1.5677,188.88,188.85,7.77963972]
[1735209839898,4.2178,188.88,188.83,2.6506]
[1735209840098,7.77963972,188.87,188.79,7.77963972]
[1735209840499,7.77963972,188.83,188.77,7.77963972]
[1735209840709,7.77963972,188.83,188.68,56.37559861]
[1735209840710,3.18,188.82,188.75,7.77963972]
[1735209841102,3.18,188.82,188.77,7.77963972]
[1735209841700,2.651,188.81,188.77,10.43113972]
[1735209844206,3.18,188.8,188.77,10.43113972]
[1735209845106,5.8311,188.8,188.77,10.43113972]
[1735209845404,5.8311,188.8,188.77,7.77963972]
[1735209846104,5.8311,188.8,188.76,2.6516]
[1735209846105,3.18,188.8,188.7,1.6763]
[1735209846406,10.95963972,188.8,188.73,2.6521]
[1735209846606,10.95963972,188.8,188.73,10.43173972]
[1735209846803,10.95963972,188.8,188.7,1.6763]
[1735209847100,7.77963972,188.76,188.68,7.77963972]
[1735209847302,3.18,188.75,188.68,7.77963972]
[1735209847702,3.18,188.75,188.64,1.5933]
[1735209847904,3.18,188.75,188.68,7.77963972]
[1735209848701,2.6525,188.71,188.68,7.77963972]
[1735209848902,3.18,188.7,188.68,7.77963972]
[1735209849602,3.18,188.7,188.69,2.6526]
[1735209849905,3.18,188.74,188.68,7.77963972]
[1735209850104,32.47877146,188.76,188.72,7.77963972]
[1735209850304,3.18,188.76,188.75,7.77963972]
[1735209852508,3.18,188.76,188.75,10.43143972]
[1735209852905,3.18,188.79,188.75,10.43143972]
[1735209854509,3.18,188.79,188.75,7.77963972]
[1735209855410,3.18,188.79,188.75,10.43143972]
[1735209855606,3.18,188.79,188.73,7.77963972]
[1735209856210,2.6514,188.78,188.73,7.77963972]
[1735209856913,2.6514,188.78,188.74,2.6518]
[1735209857911,2.6514,188.78,188.75,7.77963972]
[1735209860011,2.6514,188.78,188.74,10.43143972]
[1735209861915,3.18,188.79,188.74,7.77963972]
[1735209862112,2.6515,188.77,188.74,7.77963972]
[1735209865316,3.18,188.79,188.64,1.5933]
[1735209865613,7.77963972,188.78,188.69,7.77963972]
[1735209865815,2.652,188.74,188.69,10.43223972]
[1735209866010,3.18,188.73,188.69,10.43223972]
[1735209866606,3.18,188.73,188.64,1.5933]
[1735209866607,5.8322,188.73,188.64,1.5933]
[1735209866811,3.18,188.73,188.7,7.77963972]
[1735209868113,2.6523,188.71,188.7,7.77963972]
[1735209884333,5.8323,188.71,188.7,7.77963972]
[1735209886831,3.18,188.71,188.7,7.77963972]
[1735209890840,3.18,188.71,188.68,2.6528]
[1735209891041,3.18,188.71,188.69,7.77963972]
[1735209894947,5.8324,188.71,188.69,7.77963972]
[1735209896745,2.6526,188.69,188.63,2.6534]
[1735209896951,3.18,188.71,188.65,7.77963972]
[1735209897346,2.6527,188.69,188.65,10.43283972]
[1735209899357,3.18,188.71,188.67,7.77963972]
[1735209899551,3.18,188.71,188.69,7.77963972]
[1735209900057,3.18,188.71,188.7,2.6525]
[1735209900254,32.47877146,188.72,188.7,2.6525]
[1735209900453,32.47877146,188.72,188.71,7.77963972]
[1735209900751,29.29877146,188.72,188.71,7.77963972]
[1735209900957,3.18,188.73,188.71,10.43193972]
[1735209901153,3.18,188.73,188.71,7.77963972]
[1735209901353,3.18,188.73,188.6,54.87002461]
[1735209901553,3.18,188.73,188.69,10.43223972]
[1735209902556,5.8321,188.73,188.7,2.6525]
[1735209902756,29.29877146,188.75,188.71,7.77963972]
[1735209903062,29.29877146,188.75,188.74,2.6519]
[1735209904262,3.18,188.78,188.74,2.6519]
[1735209904454,3.18,188.77,188.74,2.6519]
[1735209907061,3.18,188.77,188.75,2.6517]
[1735209910861,3.18,188.77,188.73,7.77963972]
[1735209911160,3.18,188.77,188.74,2.6519]
[1735209917666,2.6512,188.8,188.75,7.77963972]
[1735209917865,3.18,188.79,188.75,7.77963972]
[1735209918064,3.18,188.8,188.77,7.77963972]
[1735209918472,3.18,188.8,188.77,10.43103972]
[1735209918769,3.18,188.8,188.66,3.18743147]
[1735209919067,2.6515,188.78,188.74,2.6519]
[1735209919466,10.95963972,188.8,188.73,7.77963972]
[1735209920458,2.6516,188.77,188.73,10.43163972]
[1735209922363,2.6518,188.75,188.66,1.6476]
[1735209922560,3.18,188.74,188.67,7.77963972]
[1735209922767,7.77963972,188.73,188.67,7.77963972]
[1735209923570,7.77963972,188.73,188.59,1.5403406]
[1735209923770,7.77963972,188.73,188.65,7.77963972]
[1735209925369,2.6526,188.7,188.65,10.43273972]
[1735209925568,3.18,188.69,188.65,7.77963972]
[1735209926470,3.18,188.69,188.66,2.653]
[1735209927867,1.5832,188.74,188.59,1.5403406]
[1735209927868,3.18,188.74,188.67,7.77963972]
[1735209928071,29.29877146,188.76,188.71,7.77963972]
[1735209928275,3.18,188.75,188.71,7.77963972]
[1735209929670,3.18,188.75,188.72,2.6522]
[1735209930069,3.18,188.75,188.73,7.77963972]
[1735209933072,3.18,188.75,188.63,3.18]
[1735209933271,3.18,188.75,188.7,7.77963972]
[1735209934176,2.652,188.74,188.7,10.43213972]
[1735209934577,2.652,188.74,188.7,2.6525]
[1735209934774,2.652,188.74,188.71,7.77963972]
[1735209935874,2.6522,188.72,188.71,7.77963972]
[1735209936777,7.77963972,188.73,188.6,53.21953546]
[1735209937078,1.5867,188.71,188.65,7.77963972]
[1735209937272,2.6528,188.68,188.63,2.6533]
[1735209937578,3.18,188.7,188.64,7.77963972]
[1735209937781,7.77963972,188.69,188.6,53.21953546]
[1735209938076,7.77963972,188.67,188.6,7.77963972]
[1735209938278,2.6532,188.65,188.6,7.77963972]
[1735209938479,3.18,188.64,188.6,7.77963972]
[1735209939079,3.18,188.64,188.58,7.77963972]
[1735209940978,2.6535,188.63,188.58,10.43373972]
[1735209942181,3.18,188.64,188.58,10.43373972]
[1735209942182,2.6536,188.62,188.58,10.43373972]
[1735209943483,3.18,188.64,188.51,1.6727]
[1735209943682,2.6539,188.61,188.58,7.77963972]
[1735209944084,2.6539,188.6,188.56,7.77963972]
[1735209944287,3.18,188.59,188.56,7.77963972]
[1735209945588,5.834,188.59,188.56,7.77963972]
[1735209950691,2.6542,188.58,188.55,7.77963972]
[1735209952695,3.18,188.59,188.48,53.25034359]
[1735209952890,3.18,188.59,188.52,7.77963972]
[1735209954496,2.6547,188.55,188.52,7.77963972]
[1735209954696,3.18,188.54,188.52,7.77963972]
[1735209958296,2.6542,188.58,188.52,7.77963972]
[1735209958496,3.18,188.57,188.56,7.77963972]
[1735209959203,3.18,188.57,188.54,2.6546]
[1735209959502,3.18,188.57,188.55,7.77963972]
[1735209963800,3.18,188.58,188.56,2.6544]
[1735209963994,3.18,188.59,188.57,7.77963972]
[1735209964192,3.18,188.62,188.57,7.77963972]
[1735209964402,3.18,188.62,188.6,7.77963972]
[1735209965697,11.60229286,188.68,188.6,7.77963972]
[1735209965902,3.18,188.67,188.63,7.77963972]
[1735209966301,3.18,188.67,188.53,3.18]
[1735209966302,3.18,188.67,188.65,7.77963972]
[1735209966598,3.18,188.67,188.65,10.43273972]
[1735209967600,3.18,188.67,188.66,2.653]
[1735209968401,3.18,188.71,188.69,2.6526]
[1735209968597,3.18,188.71,188.7,7.77963972]
[1735209968804,3.18,188.71,188.7,10.43213972]
[1735209969902,3.18,188.74,188.71,2.6523]
[1735209970104,3.18,188.74,188.72,7.77963972]
[1735209970602,3.18,188.74,188.73,2.6521]
[1735209971203,2.6515,188.78,188.73,2.6521]
[1735209971404,7.32469286,188.79,188.75,2.6517]
[1735209971607,3.18,188.78,188.76,7.77963972]
[1735209972100,32.47877146,188.82,188.76,7.77963972]
[1735209972307,32.47877146,188.82,188.8,7.77963972]
[1735209972500,3.18,188.82,188.8,7.77963972]
[1735209973997,3.18,188.82,188.79,2.6512]
[1735209975195,5.8308,188.82,188.77,7.77963972]
[1735209975605,2.6506,188.84,188.78,2.6513]
[1735209975804,3.18,188.82,188.79,7.77963972]
[1735209976105,3.18,188.88,188.81,7.77963972]
[1735209976294,3.18,188.88,188.86,7.77963972]
[1735209977297,2.6497,188.91,188.86,7.77963972]
[1735209977504,3.18,188.9,188.86,7.77963972]
[1735209977707,3.18,188.91,188.88,7.77963972]
[1735209978402,3.18,188.91,188.87,2.65]
[1735209978804,3.18,188.91,188.86,12.12294375]
[1735209979207,2.6497,188.9,188.86,12.12294375]
[1735209981605,5.8297,188.9,188.86,12.12294375]
[1735209983007,3.18,188.9,188.86,12.12294375]
[1735209983612,5.8297,188.9,188.85,2.6503]
[1735209984709,3.18,188.9,188.83,12.12294375]
[1735209984908,3.18,188.9,188.8,1.5755]
[1735209985109,3.18,188.9,188.81,12.12294375]
[1735209985509,2.6502,188.88,188.83,2.6506]
[1735209986014,3.18,188.9,188.81,12.12294375]
[1735209986508,12.12294375,188.89,188.76,53.17509656]
[1735209986709,12.12294375,188.89,188.76,65.29804031]
[1735209987008,2.6505,188.86,188.8,2.6512]
[1735209987213,3.18,188.85,188.8,2.6512]
[1735209987414,3.18,188.85,188.79,12.12294375]
[1735209987610,3.18,188.85,188.76,53.17509656]
[1735209987611,12.12294375,188.92,188.82,12.12294375]
[1735209987913,3.18,188.91,188.82,12.12294375]
[1735209988115,3.18,188.91,188.87,2.6501]
[1735209988814,3.18,188.91,188.83,12.12294375]
[1735209989013,5.8297,188.91,188.83,12.12294375]
[1735209989812,3.18,188.91,188.83,12.12294375]
[1735209990415,2.65,188.9,188.85,2.6505]
[1735209990615,3.18,188.89,188.85,2.6505]
[1735209991015,3.18,188.89,188.86,2.6504]
[1735209991212,3.18,188.89,188.83,12.12294375]
[1735209992118,3.18,188.89,188.87,2.6502]
[1735209994421,3.18,188.89,188.83,12.12294375]
[1735209995831,5.83,188.89,188.84,2.6505]
[1735209996626,5.83,188.89,188.85,2.6505]
[1735209998230,3.18,188.89,188.87,2.6502]
[1735209999527,3.18,188.89,188.84,7.76091478]
[1735209999733,3.18,188.89,188.84,10.41141478]
[1735210000937,5.8301,188.89,188.84,10.41141478]
[1735210002336,3.18,188.89,188.88,2.6501]
[1735210007339,3.18,188.89,188.87,2.6502]
[1735210007534,15.93,189.07,188.88,7.76091478]
[1735210007737,10.50469286,188.95,188.92,7.76091478]
[1735210007941,10.50469286,188.95,188.92,10.41041478]
[1735210007942,7.32469286,188.95,188.92,10.41041478]
[1735210008240,7.32469286,188.95,188.94,7.76091478]
[1735210008434,7.32469286,188.95,188.94,10.41021478]
[1735210008645,3.18,188.97,188.94,10.41021478]
[1735210009447,3.18,188.97,188.94,7.76091478]
[1735210009739,3.18,188.97,188.91,7.76091478]
[1735210010138,2.6494,188.94,188.89,2.6498]
[1735210010432,2.6494,188.94,188.91,7.76091478]
[1735210015050,10.50469286,188.97,188.91,7.76091478]
[1735210015343,3.18,188.96,188.93,7.76091478]
[1735210015543,3.18,188.96,188.95,7.76091478]
[1735210016537,5.8287,188.98,188.95,7.76091478]
[1735210016848,10.50469286,188.99,188.97,7.76091478]
[1735210017740,3.18,188.99,188.97,10.40971478]
[1735210017944,3.18,188.99,188.95,7.76091478]
[1735210018546,3.18,188.99,188.93,7.76091478]
[1735210019248,2.6491,188.96,188.93,7.76091478]
[1735210020246,3.18,188.98,188.95,7.76091478]
[1735210020450,3.18,188.98,188.95,10.41001478]
[1735210022138,5.8288,188.98,188.95,7.76091478]
[1735210030652,5.8288,188.98,188.94,2.6493]
[1735210033050,2.6491,188.96,188.91,2.6496]
[1735210033355,10.94091478,188.98,188.91,7.76091478]
[1735210033552,1.6471,188.97,188.91,7.76091478]
[1735210033957,2.6494,188.94,188.91,7.76091478]
[1735210034255,3.18,188.93,188.91,7.76091478]
[1735210035153,3.18,188.93,188.91,10.41061478]
[1735210035355,3.18,188.93,188.91,7.76091478]
[1735210036459,3.18,188.93,188.92,2.6496]
[1735210040365,3.18,188.93,188.9,2.6497]
[1735210040558,3.18,188.93,188.91,7.76091478]
[1735210041459,3.18,188.93,188.91,10.41061478]
[1735210042459,5.8295,188.93,188.89,10.41071478]
[1735210042662,7.76091478,188.9,188.76,29.51039922]
[1735210042963,7.76091478,188.9,188.83,7.76091478]
[1735210043162,3.1779,188.92,188.83,7.76091478]
[1735210043358,7.76091478,188.91,188.83,7.76091478]
[1735210043662,7.76091478,188.91,188.85,7.76091478]
[1735210043853,4.8,188.9,188.85,7.76091478]
[1735210044365,12.12469286,188.9,188.87,7.76091478]
[1735210045566,12.12469286,188.9,188.87,10.41111478]
[1735210045763,4.8,188.9,188.87,10.41111478]
[1735210046469,4.8,188.9,188.87,7.76091478]
[1735210053273,3.18,188.93,188.89,7.76091478]
[1735210053577,3.18,188.93,188.91,7.76091478]
[1735210054166,3.18,188.93,188.91,10.41051478]
[1735210054368,29.29877146,188.94,188.91,7.76091478]
[1735210054564,25.1540786,188.94,188.91,7.76091478]
[1735210054873,3.18,188.94,188.91,7.76091478]
[1735210055074,3.18,188.94,188.92,2.6494]
[1735210060877,2.6491,188.96,188.92,2.6494]
[1735210061077,3.18,188.95,188.92,2.6494]
[1735210061277,5.8292,188.95,188.91,10.41051478]
[1735210062378,5.8292,188.95,188.92,2.6495]
[1735210062578,3.18,188.94,188.92,2.6495]
[1735210063975,3.18,188.94,188.84,1.5958]
[1735210064175,3.18,188.94,188.92,10.41041478]
[1735210067480,7.32469286,188.97,188.92,7.76091478]
[1735210067673,3.18,188.96,188.84,1.5958]
[1735210067877,3.18,188.96,188.94,7.76091478]
[1735210068178,3.18,188.96,188.94,10.41021478]
[1735210068373,3.18,188.96,188.94,7.76091478]
[1735210069876,8.96399286,188.98,188.95,2.649]
[1735210070075,3.18,188.97,188.94,7.76091478]
[1735210070779,1.6393,188.98,188.97,2.6489]
[1735210070980,4.8193,188.98,188.97,2.6489]
[1735210072580,4.8193,188.98,188.95,2.6491]
[1735210073181,4.8193,188.98,188.96,7.76091478]
[1735210073378,4.8193,188.98,188.96,10.40991478]
[1735210075276,29.29877146,189.01,188.96,7.76091478]
[1735210075586,32.45877146,189.01,189.0,7.76091478]
[1735210075783,32.45877146,189.01,188.88,3.16]
[1735210075982,32.45877146,189.01,188.97,7.76091478]
[1735210076182,32.45877146,189.01,188.95,10.40991478]
[1735210076684,10.92091478,189.01,188.95,10.40991478]
[1735210077586,2.6486,188.99,188.95,10.40991478]
[1735210078484,3.16,188.98,188.95,10.40991478]
[1735210078681,3.16,188.98,188.96,2.6489]
[1735210078879,9.97309286,189.0,188.97,7.76091478]
[1735210078880,32.45877146,189.0,188.97,7.76091478]
[1735210079080,32.45877146,189.0,188.99,7.76091478]
[1735210079280,29.29877146,189.0,188.99,7.76091478]
[1735210079784,32.45877146,189.02,189.0,2.6483]
[1735210081380,3.16,189.02,189.0,2.6483]
[1735210083789,3.16,189.02,188.91,1.5892]
[1735210083980,3.16,189.02,188.97,7.76091478]
[1735210084885,3.16,189.02,188.99,7.76091478]
[1735210085085,3.3306,189.04,189.0,2.6483]
[1735210085285,3.16,189.03,189.0,2.6483]
[1735210085688,3.16,189.03,188.99,7.76091478]
[1735210085889,3.16,189.03,189.0,2.6484]
[1735210086685,3.16,189.03,188.97,7.76091478]
[1735210086887,10.92091478,189.03,188.97,7.76091478]
[1735210088293,2.6483,189.01,188.97,10.40961478]
[1735210088490,3.16,189.03,188.97,7.76091478]
[1735210088688,3.16,189.03,188.99,7.76091478]
[1735210089084,3.16,189.03,189.0,2.6483]
[1735210089290,31.94667146,189.04,189.0,2.6483]
[1735210089493,3.16,189.03,189.0,2.6483]
[1735210089690,3.16,189.03,189.02,2.6482]
[1735210089892,3.16,189.03,188.91,1.5892]
[1735210090194,3.16,189.03,188.99,7.76091478]
[1735210090389,5.808,189.03,189.0,2.6484]
[1735210090893,5.808,189.03,188.99,7.76091478]
[1735210091089,5.808,189.03,188.99,10.40941478]
[1735210092193,3.16,189.03,189.0,2.6483]
[1735210092392,3.16,189.03,188.99,7.76091478]
[1735210093395,3.16,189.03,189.01,7.76091478]
[1735210093802,3.16,189.03,189.02,2.6481]
[1735210095498,8.89539286,189.07,189.01,7.76091478]
[1735210095700,3.16,189.06,189.03,2.6479]
[1735210096100,5.8076,189.06,189.03,2.6479]
[1735210096296,3.16,189.06,189.01,7.76091478]
[1735210096703,5.8076,189.06,189.01,7.76091478]
[1735210096897,5.8076,189.06,189.02,2.648]
[1735210098701,2.6476,189.06,189.02,2.648]
[1735210098894,3.16,189.05,189.02,2.648]
[1735210101803,3.16,189.05,189.01,7.76091478]
[1735210102003,5.8078,189.05,189.01,7.76091478]
[1735210102301,3.16,189.04,188.96,7.76091478]
[1735210102702,3.16,189.04,188.98,7.76091478]
[1735210103097,10.40871478,189.05,189.01,2.6482]
[1735210103303,3.16,189.04,189.0,7.76091478]
[1735210103709,3.16,189.04,189.02,2.6481]
[1735210106407,3.16,189.04,189.02,10.40901478]
[1735210106602,3.16,189.04,189.03,2.648]
[1735210107206,3.16,189.04,189.02,10.40901478]
[1735210107807,3.16,189.04,189.02,7.76091478]
[1735210108007,3.16,189.04,189.03,2.648]
[1735210108207,32.45877146,189.07,189.02,7.76091478]
[1735210108406,32.45877146,189.07,189.05,7.76091478]
[1735210108807,29.29877146,189.07,189.05,7.76091478]
[1735210109414,29.29877146,189.07,189.06,2.6476]
[1735210110017,35.10587146,189.1,189.06,2.6476]
[1735210111014,35.10587146,189.1,189.07,7.76091478]
[1735210111221,5.8071,189.1,189.07,7.76091478]
[1735210111510,3.16,189.1,189.06,2.6476]
[1735210111718,2.6472,189.09,189.06,2.6476]
[1735210112315,5.807,189.1,189.06,2.6476]
[1735210114526,2.6472,189.09,189.06,2.6476]
[1735210116024,3.16,189.11,189.07,7.76091478]
[1735210116222,3.16,189.11,189.05,7.76091478]
[1735210117425,2.6472,189.09,189.05,10.40861478]
[1735210117624,2.6472,189.09,189.05,7.76091478]
[1735210117926,2.6472,189.09,189.02,2.6481]
[1735210118127,2.6472,189.09,189.0,53.10633906]
[1735210118424,2.6471,189.1,189.06,7.76091478]
[1735210119230,10.48469286,189.11,189.09,2.6472]
[1735210119432,3.16,189.11,189.09,2.6472]
[1735210121322,3.16,189.11,189.1,2.647]
[1735210122523,4.3131,189.14,189.1,2.647]
[1735210122718,3.16,189.13,189.1,2.647]
[1735210122918,2.6465,189.14,189.1,10.40791478]
[1735210123118,3.16,189.14,189.12,2.6467]
[1735210127632,3.16,189.14,189.11,10.40781478]
[1735210128129,2.647,189.11,189.07,2.6473]
[1735210128334,2.647,189.11,189.08,7.76091478]
[1735210128633,1.6321,189.13,189.08,7.76091478]
[1735210129132,2.6468,189.12,189.08,10.40811478]
[1735210133326,2.6468,189.12,189.08,2.6472]
[1735210133530,2.6468,189.12,189.08,10.40811478]
[1735210133926,2.6468,189.12,189.08,7.76091478]
[1735210134123,2.6468,189.12,189.1,7.76091478]
[1735210136035,2.6468,189.12,189.08,10.40811478]
[1735210140739,7.32469286,189.13,189.0,53.10633906]
[1735210140740,2.6471,189.1,189.06,2.6475]
[1735210140939,3.16,189.09,189.07,7.76091478]
[1735210142236,3.16,189.09,189.07,10.40831478]
[1735210143139,3.16,189.09,189.08,2.6473]
[1735210144140,3.16,189.09,189.07,7.76091478]
[1735210144141,3.16,189.12,189.11,2.6469]
[1735210144341,3.16,189.12,189.09,7.76091478]
[1735210144741,3.16,189.12,189.0,53.10633906]
[1735210144941,3.16,189.12,189.07,7.76091478]
[1735210145839,32.45877146,189.12,189.07,7.76091478]
[1735210146039,32.45877146,189.12,189.09,10.40791478]
[1735210146439,32.45877146,189.12,189.09,7.76091478]
[1735210147235,29.29877146,189.12,189.11,10.40781478]
[1735210147540,7.32469286,189.13,189.11,7.76091478]
[1735210148439,7.32469286,189.13,189.12,2.6468]
[1735210148641,10.48469286,189.15,189.11,7.76091478]
[1735210148843,10.48469286,189.15,189.13,7.76091478]
[1735210149043,10.48469286,189.15,189.13,10.40741478]
[1735210149345,7.32469286,189.15,189.13,7.76091478]
[1735210149842,7.32469286,189.16,189.15,2.6463]
[1735210150041,7.32469286,189.16,189.15,10.40721478]
[1735210151145,58.59754294,189.18,189.17,2.6461]
[1735210151146,29.29877146,189.18,189.17,2.6461]
[1735210151339,29.29877146,189.18,189.17,10.40701478]
[1735210152341,3.16,189.2,189.18,2.6458]
[1735210152342,32.45877146,189.2,189.18,2.6458]
[1735210152540,32.45877146,189.2,189.17,7.76091478]
[1735210152744,29.29877146,189.2,189.19,7.76091478]
[1735210153242,29.29877146,189.22,189.19,7.76091478]
[1735210154042,32.45877146,189.22,189.21,2.6455]
[1735210154436,3.16,189.22,189.21,2.6455]
[1735210155144,3.16,189.22,189.21,10.40641478]
[1735210156545,3.16,189.25,189.24,2.645]
[1735210156747,1.5616,189.27,189.24,2.645]
[1735210156942,3.16,189.25,189.24,2.645]
[1735210157247,3.16,189.25,189.23,7.76091478]
[1735210157449,3.16,189.25,189.2,7.76091478]
[1735210157646,1.5256,189.24,189.18,7.76091478]
[1735210158145,1.5256,189.24,189.19,2.6458]
[1735210158545,1.5256,189.24,189.2,10.40651478]
[1735210160849,1.5256,189.24,189.21,2.6455]
[1735210161047,1.5256,189.24,189.22,7.76091478]
[1735210161248,3.16,189.23,189.22,7.76091478]
[1735210161445,3.16,189.23,189.11,3.16]
[1735210161641,3.16,189.23,189.2,7.76091478]
[1735210164446,3.16,189.23,189.2,10.40651478]
[1735210167353,1.5256,189.24,189.22,7.76091478]
[1735210167951,1.5256,189.24,189.23,2.6452]
[1735210168150,8.88629286,189.27,189.22,7.76091478]
[1735210168351,3.16,189.26,189.22,7.76091478]
[1735210168552,3.16,189.26,189.24,2.645]
[1735210168951,1.5616,189.27,189.24,2.645]
[1735210169152,3.16,189.26,189.24,2.645]
[1735210171256,3.16,189.26,189.22,10.40611478]
[1735210171454,1.5616,189.27,189.22,10.40611478]
[1735210171652,3.16,189.26,189.22,10.40611478]
[1735210171848,3.16,189.26,189.23,2.6452]
[1735210174361,3.16,189.26,189.24,7.76091478]
[1735210174759,3.16,189.26,189.15,3.16]
[1735210174958,3.16,189.26,189.23,7.76091478]
[1735210175657,3.16,189.29,189.25,7.76091478]
[1735210176256,7.32469286,189.32,189.27,7.76091478]
[1735210176461,7.32469286,189.32,189.2,3.16]
[1735210176462,10.48469286,189.32,189.2,3.16]
[1735210176767,3.16,189.32,189.26,10.40561478]
[1735210177059,8.64524649,189.31,189.24,7.76091478]
[1735210177259,7.76091478,189.31,189.24,7.76091478]
[1735210177651,7.76091478,189.29,189.22,7.76091478]
[1735210177856,1.5971,189.28,189.22,7.76091478]
[1735210178051,3.16,189.27,189.22,7.76091478]
[1735210179463,2.645,189.25,189.22,7.76091478]
[1735210183864,2.6448,189.26,189.22,10.40631478]
[1735210184766,9.96949286,189.26,189.22,10.40631478]
[1735210185367,3.16,189.25,189.22,10.40631478]
[1735210187466,10.48469286,189.25,189.22,10.40631478]
[1735210189970,29.29877146,189.23,189.22,10.40631478]
[1735210190773,7.32469286,189.23,189.22,10.40631478]
[1735210193264,29.29877146,189.23,189.22,10.40631478]
[1735210193974,42.05944291,189.24,189.22,10.40631478]
[1735210194370,42.05944291,189.24,189.22,7.76091478]
[1735210194567,42.05944291,189.24,189.23,2.6452]
[1735210194769,12.76067145,189.24,189.23,2.6452]
[1735210195472,34.85902715,189.24,189.23,2.6452]
[1735210196681,3.16,189.25,189.23,2.6452]
[1735210200176,3.16,189.25,189.24,2.6451]
[1735210201178,7.36669402,189.26,189.25,2.6449]
[1735210202080,3.16,189.3,189.25,7.76091478]
[1735210202281,22.80204015,189.33,189.28,7.76091478]
[1735210202483,3.16,189.32,189.31,7.76091478]
[1735210203575,10.52586771,189.32,189.31,10.40501478]
[1735210203786,7.36586771,189.32,189.31,10.40501478]
[1735210204881,7.36586771,189.33,189.32,2.644]
[1735210205991,31.04327084,189.38,189.32,7.76091478]
[1735210206187,29.46347084,189.38,189.36,7.76091478]
[1735210207188,10.52586771,189.4,189.36,7.76091478]
[1735210207384,10.52586771,189.4,189.36,2.6434]
[1735210208094,32.62347084,189.4,189.36,2.6434]
[1735210208390,7.76091478,189.38,189.31,7.76091478]
[1735210208890,32.62347084,189.4,189.31,7.76091478]
[1735210209096,7.76091478,189.38,189.31,7.76091478]
[1735210209388,2.6434,189.37,189.31,7.76091478]
[1735210209591,2.6434,189.37,189.32,2.6439]
[1735210209786,2.6434,189.37,189.33,7.76091478]
[1735210210192,29.46347084,189.38,189.14,3.16]
[1735210210193,7.76091478,189.35,189.14,3.16]
[1735210210391,7.76091478,189.31,189.24,7.76091478]
[1735210210990,7.76091478,189.31,189.27,2.6446]
[1735210210991,3.16,189.3,189.27,2.6446]
[1735210211688,3.16,189.3,189.25,2.6448]
[1735210211889,3.16,189.3,189.18,1.6004]
[1735210211890,7.76091478,189.29,189.22,7.76091478]
[1735210212295,7.76091478,189.29,189.1,1.48234796]
[1735210212496,7.76091478,189.27,189.21,7.76091478]
[1735210212795,7.76091478,189.27,189.19,7.76091478]
[1735210213093,1.5754,189.26,189.19,7.76091478]
[1735210213298,3.16,189.25,189.21,10.40631478]
[1735210213594,10.92091478,189.25,189.19,7.76091478]
[1735210214094,12.57531478,189.25,189.19,7.76091478]
[1735210214296,4.8144,189.25,189.19,7.76091478]
[1735210214797,4.8144,189.25,189.21,2.6454]
[1735210215089,4.8144,189.25,189.19,7.76091478]
[1735210215297,4.8144,189.25,189.21,7.76091478]
[1735210215896,4.8144,189.25,189.2,7.76091478]
[1735210217495,4.8144,189.25,189.21,2.6455]
[1735210217893,4.8144,189.25,189.2,7.76091478]